{"text_format":"1","workbook":"xlsx","n_sheets":2,"sheets":["Anleitung","Lehrplan betriebliche Ausbildun"],"not_rendered":{"charts":0,"images":4,"macros":1,"external_links":0,"defined_names":4,"comments":0,"pivot_tables":0},"unopened":[],"bounds":{"document_bytes":16777216,"sheet_cells":100000,"rows_first":2000,"rows_last":500,"rows_between":2000,"halvings":0,"cell_chars":16384,"cell_head_chars":4096},"cells_cut":0,"cells_raw":0,"read":"whole","date_system":"1900"}

{"sheet":"Anleitung","index":0,"n_rows":0,"n_cols":0,"rows_kept":0,"cut":false,"hidden":false,"merged":[]}

{"sheet":"Lehrplan betriebliche Ausbildun","index":1,"n_rows":132,"n_cols":13,"rows_kept":132,"cut":false,"hidden":false,"merged":[]}
[]
[null,null,"Lehrplan betriebliche Ausbildung EBA"]
[null,null,"inklusive begleitende Massnahmen der Arbeitssicherheit und des Gesundheitsschutzes"]
[null,null,"Ariane Exemple"]
[null,null,"20. Juli 2016 bis 19. Juli 2018"]
[null,null,"Berufsbildner: Felix Muster"]
[]
[null,"Leistungsziele aus dem Bildungsplan","mögliche Tätigkeiten","Schwerpunkte","Schwerpunkte","Einführung\nDatum/Visum","Erfüllt\nDatum/Visum","Semester","Semester","Lehrjahr","Semester","Semester","Lehrjahr"]
[null,null,null,"SCH","FB",null,null,"1.","2.","1.","3.","4.","2."]
[]
[null,"1. Arbeitssicherheit/Gefahrenquellen/Gesundheitsschutz","1. Arbeitssicherheit/Gefahrenquellen/Gesundheitsschutz","x","x",null,null,"x","x","x","x","x","x"]
[null,"1.1 Persönliche Schutzausrüstung","1.1 Persönliche Schutzausrüstung","x","x",null,null,"x","x","x","x","x","x"]
[null,"1.1.1 Persönliche Schutzausrüstungen beschreiben, pflegen und anwenden. ","- Persönliche Schutzausrüstung wie z.B Gehöhrschutz, Schutzbrille, Handschuhe usw. pflegen und anwenden","x","x","2014-09-15","2014-10-15","x","x",{"$f":"IF(AND(H13=\"\",I13=\"\"),\"\",\"x\")","v":"x"},"x","x",{"$f":"IF(AND(K13=\"\",L13=\"\"),\"\",\"x\")","v":"x"}]
[null,"1.2 Schutzvorrichtungen/Gefahrenquellen bei Betriebsmittel","1.2 Schutzvorrichtungen/Gefahrenquellen bei Betriebsmittel","x","x",null,null,"x","x","x","x","x","x"]
[null,"1.2.1 Schutzvorrichtungen an betrieblichen, stationären Maschinen und an Handmaschinen zum Teil selbstständig einstellen und anwenden.","- Schutzvorrichtungen an Maschinen einstellen und anwenden","x","x",null,null,"x","x",{"$f":"IF(AND(H15=\"\",I15=\"\"),\"\",\"x\")","v":"x"},"x","x",{"$f":"IF(AND(K15=\"\",L15=\"\"),\"\",\"x\")","v":"x"}]
[null,"1.2.2 Schutzvorrichtungen an Infrastrukturanlagen und betriebsspezifischen Spezialmaschinen zum Teil selbstständig  anwenden.","- Schutzvorrichtungen z.B. bei Strom, Luft, Aufzügen, Materiallager,  betriebsspezifischen Spezialmaschinen usw. einstellen und anwenden","x","x",null,null,null,null,"","x","x","x"]
[null,"1.2.3 Gefahren an betrieblichen Maschinen, Hand- und Maschinenwerkzeugen erkennen und melden.","- Erkennen und melden von Gefahren an jeglichen Maschinen und Werkzeugen im Betrieb","x","x",null,null,"x","x","x","x","x","x"]
[null,"1.2.4 Ein sicherheitsgerechtes Verhalten im Umgang mit Infrastrukturanlagen (Strom, Luft, Öl, Aufzügen, Materiallager usw.) beschreiben und Gefahren melden.","- Gefahren bei Strom, Luft, Öl, Aufzügen, Materiallager usw. melden","x","x",null,null,"x","x","x","x","x","x"]
[null,"1.3 Schutzvorschriften/Gefahrenquellen Baustelle/Transport","1.3 Schutzvorschriften/Gefahrenquellen Baustelle/Transport","x","x",null,null,"x","x","x","x","x","x"]
[null,"1.3.1 Schutzvorschriften auf den Baustellen und bei Transporten kennen, persönliche Schutzmassnahmen anwenden. Die Regeln des Gesundheitsschutzes anwenden.","- Hilfmittel wie Leitern, Staubwände usw. fachgerecht anwenden\n- richtiger Umgang mit Asbest\n- Arbeitssicherheit und Gesundheitsschutz einhalten","x","x",null,null,null,"x",{"$f":"IF(AND(H20=\"\",I20=\"\"),\"\",\"x\")","v":"x"},"x","x",{"$f":"IF(AND(K20=\"\",L20=\"\"),\"\",\"x\")","v":"x"}]
[null,"1.3.2 Gefahrenquellen bei Elektrokabeln, Steckern, Schalter usw. erkennen und sofort melden.","- Erkennen und melden von Gefahren an elektrischen Einrichtungen","x","x",null,null,"x","x","x","x","x","x"]
[null,"1.3.3 Gefahrenquellen mit Sturz-, Stolper-, Fallgefahren, fehlende Abschrankungen usw. erkennen, melden und unter Anleitung beseitigen.","- Arbeitsplatz aufräumen und reinigen\n- Sichreheitsregeln beachten\n- Gefahrenquellen erkennen, melden und unter Anleitung beseitigen","x","x",null,null,"x","x","x","x","x",{"$f":"IF(AND(K22=\"\",L22=\"\"),\"\",\"x\")","v":"x"}]
[null,"1.3.4 Transportgüter unter Anleitung beschädigungssicher verladen, sichern, transportieren und vertragen. ","- Produkte unter Anleitung fachgerecht einpacken, sicher anbinden und transportieren","x","x",null,null,null,"x","x","x","x",{"$f":"IF(AND(K23=\"\",L23=\"\"),\"\",\"x\")","v":"x"}]
[null,"2. Materialien ","2. Materialien ","x","x",null,null,"x","x","x","x","x","x"]
[null,"2.1 Holz/Holzwerkstoffe/diverse Werkstoffe","2.1 Holz/Holzwerkstoffe/diverse Werkstoffe","x","x",null,null,"x","x","x","x","x","x"]
[null,"2.1.1 Holz, Holzwerkstoffe und diverse Werkstoffe nach Werkstoffliste einsetzen und verarbeiten.","- Massivholz selbständig sicher und effizient zuschneiden\n- Massivholz selbständig sicher und effizient hobeln\n- Holzwerkstoffe (Spanplatten, MDF, Kunstharzplatten, etc.) verarbeiten\n- Betriebsübliche Arbeitstechniken anwenden\n- Verbindungen anwenden (Dübel, Zapfen, Federn, usw.)\n- Metall, Stahl, Kunststoff, Glas usw. verarbeiten","x","x",null,null,"x","x",{"$f":"IF(AND(H26=\"\",I26=\"\"),\"\",\"x\")","v":"x"},"x","x",{"$f":"IF(AND(K26=\"\",L26=\"\"),\"\",\"x\")","v":"x"}]
[null,"2.2 Beläge/Furniere","2.2 Beläge/Furniere","x","x",null,null,"x","x","x","x","x","x"]
[null,"2.2.1 Belag- /oder Furnierarbeiten nach Anleitung ausführen.  ","- Werkstücke kalibrieren\n- Belagsmaterialien zuschneiden\n- Furnier zuschneiden und zusammensetzen\n- Leim zum Belegen oder Furnieren gemäss Herstellerangaben anwenden\n- Furnierpresse anwenden\n- usw.","x","x",null,null,null,"x",{"$f":"IF(AND(H28=\"\",I28=\"\"),\"\",\"x\")","v":"x"},"x","x",{"$f":"IF(AND(K28=\"\",L28=\"\"),\"\",\"x\")","v":"x"}]
[null,"2.2.2 Korrekte Lagerung nach Anleitung ausführen.","- Vorschriften des Herstellers zur Lagerung von Werkstoffen anwenden\n- Werkstoffe sauber und ordentlich lagern","x","x",null,null,null,null,"","x","x","x"]
[null,"2.3 Beschläge","2.3 Beschläge","x","x",null,null,"x","x","x","x","x","x"]
[null,"2.3.1 Beschläge montieren. ","- Beschläge gemäss Liste auswählen\n- Montieren von Beschlägen gemäss Plan- und Herstellerangaben (z. B. Fensterbeschläge, Türschliesser, Türbänder usw.)\n- Bedienen von Maschinen die zum Einsetzen von Beschlägen geeignet sind\n- Dichtungen fachgerecht einbauen\n- usw.","x","x",null,null,null,"x",null,"x","x",{"$f":"IF(AND(K31=\"\",L31=\"\"),\"\",\"x\")","v":"x"}]
[null,"2.3.2 Schablonen und Lehren einsetzen. ","- Schablonen und Bohrungen für Ausfräsungen und Bohrlöcher verwenden","x","x",null,null,null,null,null,"x","x","x"]
[null,"2.4 Klebstoffe/Klebetechniken","2.4 Klebstoffe/Klebetechniken","x","x",null,null,"x","x","x","x","x","x"]
[null,"2.4.1 Klebevorbereitungen ausführen. Einfache Verklebearbeiten selbstständig ausführen.","- Vorbereitungen zum Leimen treffen\n- Werkteile verleimen (mit Handzwingen, auf dem Leimständer, usw.)\n- Kanten/Einleimer anleimen","x","x",null,null,"x","x",{"$f":"IF(AND(H34=\"\",I34=\"\"),\"\",\"x\")","v":"x"},"x","x",{"$f":"IF(AND(K34=\"\",L34=\"\"),\"\",\"x\")","v":"x"}]
[null,"2.4.2 Klebegeräte anwenden und Wartungsarbeiten ausführen.  ","- Leimrollen, Pinsel usw. anwenden und reinigen","x","x",null,null,null,"x","x","x","x","x"]
[null,"2.5 Schleifmittel","2.5 Schleifmittel","x","x",null,null,"x","x","x","x","x","x"]
[null,"2.5.1 Schleifarbeiten nach Anleitung ausführen.","- Oberflächen fachgerecht schleifen","x","x",null,null,"x","x",{"$f":"IF(AND(H37=\"\",I37=\"\"),\"\",\"x\")","v":"x"},"x","x",{"$f":"IF(AND(K37=\"\",L37=\"\"),\"\",\"x\")","v":"x"}]
[null,"2.6 Oberflächenbehandlungsmittel","2.6 Oberflächenbehandlungsmittel","x","x",null,null,"x","x","x","x","x","x"]
[null,"2.6.1 Vorbereitungsarbeiten für die Oberfläche ausführen und einfache Oberflächenbehandlung unter Anleitung ausführen. ","- Oberflächen Schleifen, usw.\n- Lacke, Öle, Wachse usw. gemäss Herstellerangaben fachgerecht anwenden","x","x",null,null,null,null,"","x","x",{"$f":"IF(AND(K39=\"\",L39=\"\"),\"\",\"x\")","v":"x"}]
[null,"2.6.2 Applikationsgeräte einsetzen und warten.","- Unterschiedliche betriebsübliche Auftragsarten (Spritzen, Rollen, Streichen, Tauchen usw.) anwenden\n- Lacke, Öle usw.fachgerecht einsetzen","x","x",null,null,null,null,"","x","x","x"]
[null,"2.6.3 Gefahrenquellen erkennen und sofort melden. Sicherheitsvorschriften anwenden. ","- persönliche Schutzausrüstung und Schutzvorrichtungen anwenden (Atemschutzmaske, Feinstaubmaske, Handschuhe, usw.)\n- Gefahren erkennen und melden","x","x",null,null,null,null,"","x","x","x"]
[null,"3. Betriebsmittel","3. Betriebsmittel","x","x",null,null,"x","x","x","x","x","x"]
[null,"3.1 Infrastruktur","3.1 Infrastruktur","x","x",null,null,"x","x","x","x","x","x"]
[null,"3.1.1 Betriebseigene Infrastrukturanlagen (Strom, Luft, Öl, Aufzügen, Materiallager usw.) erläutern. ","- betriebliche Anlagen für die Druckluft, Strom, Aufzüge, usw. kennen","x","x",null,null,"x","x",{"$f":"IF(AND(H44=\"\",I44=\"\"),\"\",\"x\")","v":"x"},"x","x",{"$f":"IF(AND(K44=\"\",L44=\"\"),\"\",\"x\")","v":"x"}]
[null,"3.1.2 Defekte, Abnützungen, Störungen und Undichtigkeiten erkennen und melden. ","- Störungen und Defekte erkennen und melden","x","x",null,null,null,null,"","x","x",{"$f":"IF(AND(K45=\"\",L45=\"\"),\"\",\"x\")","v":"x"}]
[null,"3.2 Werkzeuge","3.2 Werkzeuge","x","x",null,null,"x","x","x","x","x","x"]
[null,"3.2.1 Die betrieblichen Handwerkzeuge erkennen, aufzählen, ordnen und nach Anleitung anwenden. ","- betriebliche Handwerkzeuge kennen\n- Ordnung halten beim Handwerkzeug\n- Handwerkzeuge nach Anleitung anwenden","x","x",null,null,"x","x",{"$f":"IF(AND(H47=\"\",I47=\"\"),\"\",\"x\")","v":"x"},"x","x",{"$f":"IF(AND(K47=\"\",L47=\"\"),\"\",\"x\")","v":"x"}]
[null,"3.2.2 Die betrieblichen Maschinenwerkzeuge erkennen, aufzählen, ordnen und nach Anleitung anwenden.  ","- betriebliche Maschinenwerkzeuge kennen\n- Ordnung halten beim Maschinenwerkzeuge\n- Maschinenwerkzeuge nach Anleitung anwenden","x","x",null,null,"x","x","x","x","x","x"]
[null,"3.2.3 Mit den eingesetzten Hand- und Maschinenwerkzeugen sorgfältig umgehen und nach Anleitung warten.","- Werkzeuge pflegen\n- Stechbeitel, Hobelmesser, usw. schärfen","x","x",null,null,"x","x","x","x","x","x"]
[null,"3.3 Maschinen","3.3 Maschinen","x","x",null,null,"x","x","x","x","x","x"]
[null,"3.3.1 Handmaschinen beschreiben und nach Anleitung anwenden. ","- Handmaschinen (Oberfräse, Stichsäge, usw.) nach Anleitung sicher und effizient anwenden\n- Arbeitssicherheit und Gesundheitsschutz (Staubmasken, Gehörschutz, usw.)  in Bezug auf die Maschinen anwenden","x","x",null,null,"x","x",{"$f":"IF(AND(H51=\"\",I51=\"\"),\"\",\"x\")","v":"x"},"x","x",{"$f":"IF(AND(K51=\"\",L51=\"\"),\"\",\"x\")","v":"x"}]
[null,"3.3.2 Den Einsatz stationärer Maschinen erläutern und unter Anleitung und zum Teil selbstständig Maschinenarbeiten ausführen. ","- Stationäre Maschinen bedienen (Ständerbohrmaschine, Kreissäge, Bandsäge, Hobelmaschine, etc., nach erfolgter Einführung im üK)\n- Schlitzen und stemmen mit Bandsäge\n- Stationäre Maschinen reinigen und pflegen","x","x",null,null,"x","x","x","x","x","x"]
[null,"3.3.3 Betriebsspezifische Spezialmaschinen beschreiben und unter Anleitung und zum Teil selbstständig bedienen. ","- Die betriebsspezifischen Spezialmaschinen kennen und unter Anleitung bedienen","x","x",null,null,null,null,"","x","x","x"]
[null,"4. Montage/Lieferungen","4. Montage/Lieferungen","x","x",null,null,"x","x","x","x","x","x"]
[null,"4.1 Vorbereitungen Werkstatt","4.1 Vorbereitungen Werkstatt","x","x",null,null,"x","x","x","x","x","x"]
[null,"4.1.1 Einfache Pläne interpretieren.","- einfache Pläne lesen","x","x",null,null,null,"x",{"$f":"IF(AND(H56=\"\",I56=\"\"),\"\",\"x\")","v":"x"},"x","x",{"$f":"IF(AND(K56=\"\",L56=\"\"),\"\",\"x\")","v":"x"}]
[null,"4.1.2 Werkzeuge und Hilfsmittel in der Werkstatt bereitstellen. ","- Richtige Werkzeuge und Hilfsmittel für die Montage bereitstellen\n- Kleinmaschinen für Arbeiten auf Montage vorbereiten/bereitstellen","x","x",null,null,null,"x","x","x","x","x"]
[null,"4.1.3 Erforderliche Materialien bereitstellen.","- nötige Materialien für die Montage bereitstellen","x","x",null,null,null,"x","x","x","x","x"]
[null,"4.1.4 Beim Beladen von Fahrzeugen mithelfen.","- beim beladen von Fahrzeugen mithelfen","x","x",null,null,null,"x","x","x","x",{"$f":"IF(AND(K59=\"\",L59=\"\"),\"\",\"x\")","v":"x"}]
[null,"4.2 Montagearbeiten Bau/Kunde/Lieferungen","4.2 Montagearbeiten Bau/Kunde/Lieferungen","x","x",null,null,"x","x","x","x","x","x"]
[null,"4.2.1 Einfache Bauteile messen. ","- Betriebsübliche Werkzeuge zur Massaufnahme benutzen\n- Beim Kunden oder auf der Baustelle einfache Massaufnahmen tätigen","x","x",null,null,null,"x",{"$f":"IF(AND(H61=\"\",I61=\"\"),\"\",\"x\")","v":"x"},"x","x",{"$f":"IF(AND(K61=\"\",L61=\"\"),\"\",\"x\")","v":"x"}]
[null,"4.2.2 Einfache Montagearbeiten mit den nötigen Anweisungen ausführen.","- Befestigungstechniken anwenden (z. B. Dübel, Schrauben, Bohrhammer, usw.) \n- Einfache Montagearbeiten durchführen (z. B. Innentüren, Küchen, Innenausbauten, etc.)\n","x","x",null,null,null,"x","x","x","x","x"]
[null,"4.2.3 Korrektes Auftreten und Verhalten beim Kunden.","- beim Kunden korrekt und gepflegt auftreten","x","x",null,null,null,"x","x","x","x",{"$f":"IF(AND(K63=\"\",L63=\"\"),\"\",\"x\")","v":"x"}]
[null,"5. Fachzeichnen","5. Fachzeichnen","x","x",null,null,"x","x","x","x","x","x"]
[null,"5.1 Werkzeichnungen","5.1 Werkzeichnungen","x","x",null,null,"x","x","x","x","x","x"]
[null,"5.1.1 Betriebseigene Konstruktionen erklären und unter Anleitung umsetzen.","- Betriebseigene Konstruktionen unter Anleitung umsetzen.","x","x",null,null,"x","x",{"$f":"IF(AND(H66=\"\",I66=\"\"),\"\",\"x\")","v":"x"},"x","x",{"$f":"IF(AND(K66=\"\",L66=\"\"),\"\",\"x\")","v":"x"}]
[null,"5.2 Listen","5.2 Listen","x","x",null,null,"x","x","x","x","x","x"]
[null,"5.2.1 Beschlägeliste interpretieren und Beschläge bereitstellen.","- Beschläge gemäss Beschlägeliste bereitstellen","x","x",null,null,null,"x",{"$f":"IF(AND(H68=\"\",I68=\"\"),\"\",\"x\")","v":"x"},"x","x",{"$f":"IF(AND(K68=\"\",L68=\"\"),\"\",\"x\")","v":"x"}]
[null,"5.2.2 Werkstofflisten interpretieren und umsetzen.","- Werkstofflisten lesen und umsetzen","x","x",null,null,"x","x","x","x","x","x"]
[null,"6. Berechnungen","6. Berechnungen","x","x",null,null,"x","x","x","x","x","x"]
[null,"6.1 Fachrechnen","6.1 Fachrechnen","x","x",null,null,"x","x","x","x","x","x"]
[null,"6.1.1 Einfache Strecken und Flächen berechnen.","- Gleichmässige Schraubenabstände berechnen\n- Fläche von zu furnierenden Werkstücken berechnen, um den Pressdruck korrekt einzustellen\n- usw.","x","x",null,null,"x","x",{"$f":"IF(AND(H72=\"\",I72=\"\"),\"\",\"x\")","v":"x"},"x","x",{"$f":"IF(AND(K72=\"\",L72=\"\"),\"\",\"x\")","v":"x"}]
[null,"6.1.2 Reissmasse berechnen und aufzeichnen.","- Arbeiten reissen","x","x",null,null,"x","x","x","x","x","x"]
[null,"6.2 Kalkulation","6.2 Kalkulation","x","x",null,null,"x","x","x","x","x","x"]
[null,"6.2.1 Kostengerechtes Handeln.","- Kosteneffizient arbeiten","x","x",null,null,"x","x",{"$f":"IF(AND(H75=\"\",I75=\"\"),\"\",\"x\")","v":"x"},"x","x"]
[null,"6.2.2 Zeiterfassung, einfache Rapporte und Auftragsformulare korrekt einsetzen.","- Zeitrapport selbstständig ausfüllen\neinfache Rapporte ausfüllen","x","x",null,null,null,"x","x","x","x"]
[null,"7. Vorschriften/Normen","7. Vorschriften/Normen","x","x",null,null,"x","x","x","x","x","x"]
[null,"7.1 Vorschriften/Normen","7.1 Vorschriften/Normen","x","x",null,null,"x","x","x","x","x","x"]
[null,"7.1.1 Die betriebsüblichen Normen und Vorschriften unter Anleitung einhalten.","- betriebliche Normen und Vorschriften unter Anleitung einhalten","x","x",null,null,null,null,{"$f":"IF(AND(H79=\"\",I79=\"\"),\"\",\"x\")","v":""},"x","x",{"$f":"IF(AND(K79=\"\",L79=\"\"),\"\",\"x\")","v":"x"}]
[null,"8. Umweltschutz/Ökologie","8. Umweltschutz/Ökologie","x","x",null,null,"x","x","x","x","x","x"]
[null,"8.1 Etiketten/Gebrauchsanweisungen","8.1 Etiketten/Gebrauchsanweisungen","x","x",null,null,"x","x","x","x","x","x"]
[null,"8.1.1 Angaben auf Etiketten, Merkblättern und Gebrauchsanweisungen lesen und unter Anleitung anwenden.","- Ettiketten, Merkblätter, Gebracuhsanweisungen lesen und unter Anleitung anwenden","x","x",null,null,"x","x",{"$f":"IF(AND(H82=\"\",I82=\"\"),\"\",\"x\")","v":"x"},"x","x",{"$f":"IF(AND(K82=\"\",L82=\"\"),\"\",\"x\")","v":"x"}]
[null,"8.2 Entsorgung","8.2 Entsorgung","x","x",null,null,"x","x","x","x","x","x"]
[null,"8.2.1 Fachgerechte Entsorgung der verschiedenen Materialien in seinem Tätigkeitsbereich unter Anleitung ausführen.","- Abfälle vermeiden und fachgerecht entsorgen\n- Lacke, Öle, etc.  fachgerecht recyceln und unter Anleitung entsorgen","x","x",null,null,"x","x",{"$f":"IF(AND(H84=\"\",I84=\"\"),\"\",\"x\")","v":"x"},"x","x","x"]
[null,"9. Arbeitsrecht/Administration","9. Arbeitsrecht/Administration","x","x",null,null,"x","x","x","x","x","x"]
[null,"9.1 Rechte und Pflichten","9.1 Rechte und Pflichten","x","x",null,null,"x","x","x","x","x","x"]
[null,"9.1.1 Die Rechte und Pflichten im Attest-Lehrvertrag erläutern. Betriebliche Regeln pflichtbewusst anwenden. Betriebsübliche Arbeitsrapporte korrekt ausfüllen.","- Inhalt des Attest-Lehrvertrags kennen und befolgen\n- Interne Weisungen kennen und befolgen\n- Zeitrapport selbstständig und korrekt ausfüllen","x","x",null,null,"x","x",{"$f":"IF(AND(H87=\"\",I87=\"\"),\"\",\"x\")","v":"x"},"x","x",{"$f":"IF(AND(K87=\"\",L87=\"\"),\"\",\"x\")","v":"x"}]
[null,"9.2 Ausbildungsunterlagen","9.2 Ausbildungsunterlagen","x","x",null,null,"x","x","x","x","x","x"]
[null,"9.2.1 Arbeitsdokumente/Arbeitsberichte gemäss Vorgabe VSSM/FRECEM fristgerecht erstellen und besprechen.","- Fotos, Notizen für die Lerndokumentation erstellen\n- Anzahl der Lerndokumentationen pro Semester und Abgabetermine einhalten","x","x",null,null,"x","x",{"$f":"IF(AND(H89=\"\",I89=\"\"),\"\",\"x\")","v":"x"},"x","x",{"$f":"IF(AND(K89=\"\",L89=\"\"),\"\",\"x\")","v":"x"}]
[null,"9.2.2 Semesterausbildungsberichte ausfüllen, besprechen und einordnen. Kursberichte/Zeugnisse besprechen und einordnen.","- Bildungsberichte, Zeugnisse und Kursberichte besprechen und einordnen","x","x",null,null,"x","x","x","x","x","x"]
[null,null,"Begleitende Massnahmen der Arbeitssicherheit und des Gesundheitsschutzes","x","x",null,null,"x","x","x","x","x","x"]
["Gefährliche Arbeiten","Gefahren","Präventionsthemen für die Schulung / Ausbildung, Anleitung und Überwachung","x","x","Zeitpunkt der \nSchulung / Ausbildung","Eingeführt am\nDatum/Visum",{"$f":"H9&\" \"&H8","v":"1. Semester"},"2. Semester","1. Lehrjahr","3. Semester","4. Semester","2. Lehrjahr"]
[null,null,"Hilfsmittel und Unterlagen","x","x","x","x","x","x","x","x","x","x"]
[null,null,null,"x","x","x","x","Überwachung \nneA = nach erfolgter Ausbildung"]
["Arbeiten mit repetitiver \nBelastung oder \nungünstiger Haltung\n(z. B. bei Bodenverlege-\narbeiten oder Decken-montagearbeiten)","• Zwangshaltungen, ungünstige Körperhaltungen und -bewegungen (Rückenschäden usw.)\n• Überlastung von Körperteilen (Sehnenscheidenentzündungen, Erkrankung der Schleimbeutel, usw.)","Ergonomie am Arbeitsplatz\nArbeitstechnik / Einsatz von Hilfsmitteln\n• Ergonomisches Einrichten des Arbeitsplatzes\n• Tätigkeitswechsel / Erholungsphasen vorsehen\n• Einsatz von Hilfsmitteln und PSA (Knieschoner, Montagehilfen, etc.)\n• VSSM-Ordner Werkstatt Kap. 1.3: \"Arbeitsplatz\"","x","x","1. Lehrjahr",null,"Ständig oder \nhäufig neA","Ständig oder \nhäufig neA","Ständig oder \nhäufig neA","Gelegentlich","Gelegentlich","Gelegentlich"]
["Manuelles Heben, Tra-gen und Verschieben von \nLasten über den in ArGV5 festgelegten Richtwerten (z. B. beim Abladen, \nMontagearbeiten) ","• Überlastung des Bewegungsapparates (Wachstumsstörungen usw.)\n• Fehlhaltungen (Rückenleiden usw.)\n• Verletzung durch Quetschen (Fussverletzungen, usw.)\n","Körperschonender Umgang mit Lasten.\nArbeitstechnik / Einsatz von Hilfsmitteln.\n• EKAS 6245: \"Lastentransport von Hand\"\n• VSSM-Ordner Werkstatt Kap. 1.1: \"Lasten sicher von Hand transportieren\"\n• Wegleitung zu ArGV3: Art. 25","x","x","1. Lehrjahr",null,"Ständig oder \nhäufig neA","Ständig oder \nhäufig neA","Ständig oder \nhäufig neA","Gelegentlich","Gelegentlich","Gelegentlich"]
["Transport, Lagerung und \nUmgang von \nHolzwerkstoffen und Bauprodukten\n","• Mechanische Verletzungen durch Spiesse, sich schneiden, getroffen werden\n• Erdrückt werden durch kippende oder stürzende Waren / Stapel\n• Sensibilisierung der Haut und Atemwege\n\n","Sichere Lagerung und Umgang mit Holzwerkstoffen und Bauprodukten.\n• Herstellerangaben / Produktedatenblätter\n• Einsatz der persönlichen Schutzausrüstung\n• VSSM-Ordner Werkstatt Kap. 1.1: \"Arbeitssicherheit und Gesundheitsschutz\"\n• VSSM-Ordner Werkstatt Kap. 1.7: \"Lagerung und Entsorgung\"","x","x","1. - 2.\nLehrjahr",null,"Ständig oder \nhäufig neA","Ständig oder \nhäufig neA","Ständig oder \nhäufig neA","Gelegentlich","Gelegentlich","Gelegentlich"]
["Heben und Verschieben von Lasten mit Hebe-\ngeräten inkl. Anschlagen der Lasten. \n(z. B. Deichselstapler, \"Ameise“)\n(exklusive Stapler)","• Erdrückt werden, getroffen werden von Waren, sich einklemmen, quetschen usw.\n• Fussverletzungen durch grosse Gewichte\n","Lasten sicher handhaben mit Hebegeräten\n•\tHerstellerangaben / Betriebsanleitung\n•\tVSSM-Ordner Werkstatt Kap. 8.3: \"Transport zur Baustelle\"\n•\tSuva MB 88801: \"10 lebenswichtige Regeln für das Anschlagen von Lasten\"\n•\tSuva CL 67017: \"Anschlagmittel, Anbindemittel\"\n•\tSuva CL 67046: \"Deichselstapler“","x","x","1. - 2.\nLehrjahr",null,"Ständig oder \nhäufig neA","Ständig oder \nhäufig neA","Ständig oder \nhäufig neA","Gelegentlich","Gelegentlich","Gelegentlich"]
["Anschlagen von Lasten an Kranen\n\n(Krane im Geltungsbe-reich der Kranverord-nung =\nSonderkompetenz sofern \nbetrieblich erforderlich)","•\tErdrückt werden, getroffen werden von Waren, sich einklemmen, quet-schen usw.\n•\tFussverletzungen durch grosse Gewichte","Lasten sicher an Kranen anschlagen\n•\tSuva FS 33099\n•\tSuva MB 88801: \"10 lebenswichtige Regeln für das Anschlagen von Lasten.\"\n•\tSuva CL 67017: \"Anschlagmittel\"\n•\tSuva CL 67198: \"Lastaufnahmemittel“\n•\tDer schriftliche Nachweis für die geforderte Ausbildung muss vorhanden sein.","x","x","Ausbildung vor dem ersten Einsatz!",null,"Ständig","Ständig",null,"Ständig","Ständig"]
["Bedienung von \nIndustriekranen\n\n(Krane im Geltungsbe-reich der Kranverord-nung =\nSonderkompetenz sofern \nbetrieblich erforderlich)","•\tGetroffen werden von pendelnder, umkippender oder abstürzender Last\n•\tVerletzen von Händen und Füssen beim Hochziehen und Absetzen der Last\n•\tEingeklemmt werden zwischen Kran und Gebäudeteilen","Sichere Bedienung von Industriekranen\n•\tHerstellerangaben / Betriebsanleitung\n•\tSuva FS 33081\n•\tSuva CL 67158: \"Hebezeuge\"\n•\tSuva CL 67159: \"Krane in Industrie und Gewerbe\"\n•\tDer schriftliche Nachweis für die geforderte Ausbildung muss vorhanden sein.","x","x","Ausbildung vor dem ersten Einsatz!",null,"Ständig","Ständig",null,"Ständig","Ständig"]
["Arbeiten mit Handwerkzeugen und Handmaschinen","• Sich schneiden, stechen, quetschen usw.\n• Schädigung des Gehörs\n• Augenverletzungen\n• Getroffen werden von wegfliegenden Werkstückteilen\n• Schädigung infolge starker Vibrationen\n","Sicherer Umgang mit Arbeitsmitteln\n• Herstellerangaben / Betriebsanleitung\n• Einsatz der persönlichen Schutzausrüstung\n• VSSM-Ordner Werkstatt Kap. 1.1: \"Arbeitssicher-heit und Gesundheitsschutz\"\n• Suva MB 44015: \"Handwerkzeuge\"\n• VSSM-Ordner Werkstatt Kap. 4: \"Handmaschi-nen\"\n• VSSM Video Werkstatt: \"Handmaschinen\"","x","x","1. - 2.\nLehrjahr",null,"Ständig oder \nhäufig neA","Ständig oder \nhäufig neA","Ständig oder \nhäufig neA","Gelegentlich","Gelegentlich","Gelegentlich"]
["Arbeiten mit stationären \nHolzbearbeitungs-\nmaschinen\n(Normalbetrieb mit Einrichtarbeiten)","• Sich schneiden, bohren, quetschen usw.\n• Eingezogen werden\n• Schädigung des Gehörs\n• Augenverletzungen\n• Getroffen werden von wegfliegenden Werkstückteilen","Holz sicher und effizient bearbeiten.\nMaschinen und Einrichtungen sicher einsetzen.\n• Herstellerangaben / Betriebsanleitung\n• Einsatz der persönlichen Schutzausrüstung\n• VSSM-Ordner \"Holz sicher und effizient bearbeiten\" inkl. Filme auf www.suva.ch/holzbearbeitung","x","x","1. - 2.\nLehrjahr",null,"Ständig oder \nhäufig neA","Ständig oder \nhäufig neA","Ständig oder \nhäufig neA","Häufig","Häufig","Häufig"]
["Ausführen von \nInstandhaltungsarbeiten und einfache Störungsbehebung an Maschinen\n","• Sich schneiden, bohren, quetschen usw.\n• Eingezogen werden\n• Ungesicherte, gespeicherte Energien\n• Lärm\n• Augenverletzungen","Instandhaltung und Störungsbehebung sicher ausführen.\n• Herstellerangaben / Betriebsanleitung\n• Einsatz der persönlichen Schutzausrüstung\n• VSSM-Ordner \"Holz sicher und effizient bearbeiten\" inkl. Filme auf www.suva.ch/holzbearbeitung\n• Suva MB 88813: \"Acht lebenswichtige Regeln für die Instandhaltung\" ","x","x","2. Lehrjahr",null,null,null,null,"Ständig oder\nhäufig neA","Ständig oder\nhäufig neA","Ständig oder\nhäufig neA"]
["Arbeit in mit Holzstaub \nangereicherter Luft\n","• Atemwegsbeschwerden / -erkrankungen\n• Sensibilisierung gegenüber Holzstaub und Entwicklung von Allergien (z. B. Erhöhtes Krebsrisiko durch Holzarten wie Buche, Eiche oder Exotenhölzer)\n• Brand- und Explosionsrisiko\n\n","Sensibilisierung und Schutzmassnahmen betreffend Holzstaub.\n• VSSM-Ordner Holz sicher und effizient bearbeiten Kap. 1.3: \"Absaugtechnik\"\n• VSSM-Ordner Werkstatt Kap. 1.1: \"Arbeitssicherheit und Gesundheitsschutz / Staubsaugen statt abblasen\"\n• Suva CL 67132: \"Explosionsrisiken\"\n","x","x","1. Lehrjahr",null,"Ständig oder \nhäufig neA","Ständig oder \nhäufig neA","Ständig oder \nhäufig neA","Gelegentlich","Gelegentlich","Gelegentlich"]
["Arbeiten mit gesundheits-gefährdenden Stoffen\n(z. B. bei Arbeiten bei denen Stoffkategorien mit H-Sätzen zum Einsatz kommen wie in der Oberflächenbehandlung: Isozyanathärter, 2-K Lacke und Härter mit organischen Peroxiden, Verdünner, Öle, Wachse, Laugen, Seifen, \nLasuren, Pflege- und \nRetuschiermittel, Patina, Holzschutzmittel usw.; in der Verbindungstechnik und bei Dichtungsarbeiten: PUR-Leime, PUR-Schäume, Formaldehyd usw.; sowie beim Schleifen dieser Stoffe)","• Reizungen / Sensibilisierung von\n - Augen\n - Haut\n - Atemwegen\n - Schleimhäuten\n• Allergien / Ekzeme\n• Brand- und Explosionsgefahr \n","Sensibilisierung und Schutzmassnahmen betreffend gesundheitsgefährdenden Stoffen\n• Herstellerangaben / Sicherheitsdatenblätter\n• Absaug- und Lüftungsmassnahmen / EX-Schutz\n• Einsatz der persönlichen Schutzausrüstung\n• VSSM-Ordner Werkstatt Kap. 1.7: “Lagerung und Entsorgung“\n• VSSM-Ordner Werkstatt Kap. 7.4: \"Überzüge und Applikationen\"\n• Suva MB 44013: “Chemikalien im Baugewerbe“\n• www.cheminfo.ch (z. B. Gefahrensymbole)\n• sicherer Umgang mit Holzschutzmittel\n\n","x","x","1. - 2.\nLehrjahr",null,"Ständig oder \nhäufig neA","Ständig oder \nhäufig neA","Ständig oder \nhäufig neA","Häufig","Häufig","Häufig"]
["Kontakt mit asbesthaltigem Material bei Rückbauarbei-ten oder bei Renovations-arbeiten, insbesondere bei Glaser-\narbeiten (z. B. Fensterkitt)","• Einatmen von freigesetzten Asbestfasern (Krebserkrankungen usw.)","Identifikation und Umgang mit asbesthaltigen Produkten.\n• Suva MB 84043: \"Asbest erkennen, beurteilen und richtig handeln. Lebenswichtige Regeln für das Schreinergewerbe.\"\n• www.suva.ch/asbest\n• VSSM-Ordner Werkstatt Kap. 8.5: \"Einglasarbeiten\"","x","x","1. Lehrjahr",null,"Ständig","Ständig","Ständig","Ständig","Ständig","Ständig"]
["Arbeiten ohne örtlich festen Arbeitsplatz\n(z. B. Montagearbeiten auf Baustellen)","• Gefährdungen durch sich ständig verändernde Arbeitsumgebungsbedingungen\n","Sicherheit auf Baustellen und bei Montagearbeiten\n• Bauarbeitenverordnung / BauAV\n• VSSM-Ordner Werkstatt Kap. 1.1: \"Arbeitssicher-heit und Gesundheitsschutz\"\n• VSSM-Ordner Werkstatt Kap. 8: \"Montage\"\n• Suva MB 88818: \"Zehn lebenswichtige Regeln für den Holzbau\"","x","x","1. - 2.\nLehrjahr",null,"Ständig oder \nhäufig neA","Ständig oder \nhäufig neA","Ständig oder \nhäufig neA","Gelegentlich","Gelegentlich","Gelegentlich"]
["Arbeiten in der Höhe mit \nAbsturzrisiko\n(z. B. beim Arbeiten mit \nLeitern, Fassaden- und Rollgerüsten im Betrieb sowie auf der Baustelle)\n","• Sturz aus der Höhe\n• Verschieben, Kippen des Arbeitsmittels\n\n","Leitern sicher einsetzen.\n• VSSM-Ordner Werkstatt Kap. 8.4: \"Montagearbeiten\"\n• Suva FP 84070: \"Wer sagt 12x Ja? Sicher auf die Anstell- und Bockleiter\"\n• Suva Video 382: \"Willst du auf die Leiter? So geht's weiter!\"\n\nSicheres benutzen / einsetzen von Gerüsten (z. B. Fassadengerüste / Rollgerüste). \n• Suva Info 44077/1: \"Sicheres Fassadengerüst\"\n• VSSM-Ordner Werkstatt Kap. 8.4: \"Montagearbeiten\"","x","x","1. Lehrjahr",null,"Ständig oder \nhäufig neA","Ständig oder \nhäufig neA","Ständig oder \nhäufig neA","Gelegentlich","Gelegentlich","Gelegentlich"]
["Arbeiten in der Höhe mit \nHubarbeitsbühnen\n\n(Sonderkompetenz sofern betrieblich erforderlich)","• Sturz aus der Höhe\n• Kippen des Arbeitsmittels\n\n(z. B. bei Montagearbeiten von Decken, Fenstermontage)","Sicheres benutzen und einsetzen von Hubarbeitsbühnen\n• Herstellerangaben / Betriebsanleitung\n• Suva CL 67064/1 und CL 67064/2: \"Hubarbeitsbühnen\"\n• Der schriftliche Nachweis für die geforderte Ausbildung muss vorhanden sein","x","x","Ausbildung vor dem ersten Einsatz",null,"Ständig","Ständig","Ständig","Ständig","Ständig","Ständig"]
["Arbeiten in der Höhe mit der Persönlichen Schutzausrüstung gegen Absturz \n\n(Sonderkompetenz sofern betrieblich erforderlich)","• Sturz aus der Höhe\n\n(z. B. bei der Fenstermontage)","Sicheres benutzen und einsetzen der PSAgA\n• Wenn möglich sind grundsätzlich kollektive Schutzmassnahmen vorzuziehen!\n• Herstellerangaben / Betriebsanleitung\n• Suva MB 84044: \"Acht lebenswichtige Regeln für das Arbeiten mit Anseilschutz\"\n• www.absturzrisiko.ch \n• Der schriftliche Nachweis für die geforderte Ausbildung muss vorhanden sein","x","x","Ausbildung vor dem ersten Einsatz",null,"Ständig","Ständig","Ständig","Ständig","Ständig","Ständig"]
[]
[null,null,"Lerndokumentation","x","x","Termin","Datum/\nVisum","1. Semesterx","2. Semesterx","x","3. Semesterx","4. Semesterx","x"]
[null,null,"Ergonomie am Arbeitsplatz - korrekte Höhe der Hobelbank einstellen",{"$f":"IF(COUNTIF($G113:$M113,\"x\")>0,\"x\",\"\")","v":"x"},"x",null,null,"x",null,{"$f":"IF(AND(H113=\"\",I113=\"\"),\"\",\"x\")","v":"x"},null,null,{"$f":"IF(AND(K113=\"\",L113=\"\"),\"\",\"x\")","v":""}]
[null,null,null,"","",null,null,null,null,"",null,null,""]
[null,null,null,"","",null,null,null,null,"",null,null,""]
[null,null,null,"","",null,null,null,null,"",null,null,""]
[null,null,null,"","",null,null,null,null,"",null,null,""]
[null,null,null,"","",null,null,null,null,"",null,null,""]
[null,null,null,"","",null,null,null,null,"",null,null,""]
[null,null,null,"","",null,null,null,null,"",null,null,""]
[null,null,null,"","",null,null,null,null,"",null,null,""]
[null,null,null,"","",null,null,null,null,"",null,null,""]
[null,null,null,"","",null,null,null,null,"",null,null,""]
[null,null,null,"","",null,null,null,null,"",null,null,""]
[null,null,null,"","",null,null,null,null,"",null,null,""]
[]
[null,null,"überbetriebliche Kurse",null,null,"Datum Durchführung"]
[]
[]
[]
[]
[null,null,"Besprechung Bildungsbericht",null,null,"Datum Durchführung"]